Cogmind - Beta 13 @@@ ROGUE MODE // 2024.04.15 @ 11:57:09 Player: Red_Zig Result: Destroyed by D-53 Grenadier with Mini Grenade Launcher Performance ------------- Evolutions (0) 0 Regions Visited (4) 800 Robots Destroyed (12) 60 Value Destroyed (237) 237 Prototype IDs (23) 460 Alien Tech Used (0) 0 Bonus (300) 300 TOTAL SCORE: 1857 Bonus ------- Aligned with FarCom 300 Cogmind --------- Core Integrity 0/250 Matter 234/300 Energy 160/160 System Corruption 0% Temperature Cool (0) Movement Hovering (131) Ox1 Location -9/Mines Parts ------- > --- POWER (1) -------- Light Nuclear Core > --- PROPULSION (2) --- Hover Unit Combat Airjet > --- UTILITY (2) ------ Large Storage Unit Improved Signal Interpreter > --- WEAPON (2) ------- Assault Rifle Assault Rifle > --- INVENTORY (15) --- High-capacity Matter Pod (200) Cloak of Protection Improved Propulsion Shielding EM Pulse Gun Heavy Particle Cannon Grenade Launcher Mini Grenade Launcher Signal Generator Peak State ------------ > --- POWER ------------ Light Nuclear Core > --- PROPULSION ------- Hover Unit Combat Airjet > --- UTILITY ---------- Large Storage Unit Improved Signal Interpreter > --- WEAPON ----------- Grenade Launcher Mini Grenade Launcher > --- INVENTORY -------- High-capacity Matter Pod Cloak of Protection Improved Propulsion Shielding EM Pulse Gun Heavy Particle Cannon Assault Rifle Assault Rifle Signal Generator [Rating: 18] Favorites ----------- Power Ion Engine Engine Ion Engine Power Core Light Nuclear Core Propulsion Light Treads Treads Light Treads Hover Unit Combat Airjet Utility Small Storage Unit Storage Small Storage Unit Processor Improved Signal Interpreter Weapon Assault Rifle Energy Gun EM Pulse Gun Ballistic Gun Assault Rifle Launcher Grenade Launcher Build | -11 -10 -10 -10 -9 ------- Run | Yrd Mat Min Exi Min Slots Evolved . | . . . . . Power . | . . . . . Propulsion . | . . . . . Utility . | . . . . . Weapon . | . . . . . Parts Attached 25 | 9 4 7 1 4 Power 3 | 1 . 2 . . Engine 2 | 1 . 1 . . Core 1 | . . 1 . . Reactor . | . . . . . Propulsion 4 | 3 1 . . . Treads 2 | 2 . . . . Leg . | . . . . . Wheel . | . . . . . Hover 2 | 1 1 . . . Flight . | . . . . . Utility 4 | 2 . 1 1 . Device . | . . . . . Storage 3 | 2 . . 1 . Processor 1 | . . 1 . . Hackware . | . . . . . Protection . | . . . . . Artifact . | . . . . . Weapon 14 | 3 3 4 . 4 Energy Gun 1 | 1 . . . . Energy Cannon . | . . . . . Ballistic Gun 8 | 2 2 2 . 2 Ballistic Cannon . | . . . . . Launcher 5 | . 1 2 . 2 Special Weapon . | . . . . . Impact Weapon . | . . . . . Slashing Weapon . | . . . . . Piercing Weapon . | . . . . . Special Melee Weapon . | . . . . . Unidentified Prototypes . | . . . . . Parts Lost 4 | 4 . . . . Power 1 | 1 . . . . Propulsion 1 | 1 . . . . Utility . | . . . . . Weapon 2 | 2 . . . . Highest Loss Streak 4 | 4 . . . . To Critical Strikes . | . . . . . Average Slot Usage (%) 90 | . 56 92 100 100 Core 10 | . . 7 14 14 Hover 25 | . 15 28 28 28 Storage 14 | . 14 14 14 14 Processor 10 | . . 8 14 14 Ballistic Gun 26 | . 23 26 28 20 Launcher 1 | . 1 1 . 7 Naked Turns . | . . . . . Heaviest Build 29 | 14 10 14 29 29 Greatest Support 40 | 40 18 18 18 18 Greatest Overweight (x) 1 | 1 . . 1 1 Average Overweight (x) . | . . . . 1 Largest Inventory Capacity 15 | 8 8 8 15 15 Average Capacity 9 | 7 8 8 13 15 Most Carried 8 | 5 7 8 8 8 Average Carried 4 | 3 6 7 7 8 Final Capacity 15 | 8 8 8 15 15 Final Carried 8 | 4 7 8 8 8 Class Distribution -------------------- 100% | Mutant Dominant Class ---------------- Mutant | -10/Materials Mutant | -10/Mines Mutant | -10/Exiles Mutant | -9/Mines Resources | -11 -10 -10 -10 -9 ----------- Run | Yrd Mat Min Exi Min Matter Collected 730 | 344 192 77 103 14 Remotely . | . . . . . Salvage Created 298 | 74 133 78 . 13 Parts 22 | 2 5 12 . 3 Haulers Intercepted . | . . . . . Recyclers Shooed 1 | . 1 . . . Parts Field Recycled . | . . . . . Retrieved Matter . | . . . . . Parts Self-Destructed . | . . . . . Prevented . | . . . . . Kills | -11 -10 -10 -10 -9 ------- Run | Yrd Mat Min Exi Min Combat Hostiles Destroyed 13 | 4 1 5 . 3 Guns 7 | 4 1 2 . . AOE 6 | . . 3 . 3 Classes Destroyed 6 | 2 3 1 . . Recycler 1 | . 1 . . . Operator 1 | . 1 . . . Swarmer 6 | . . 3 . 3 Grunt 3 | . 1 2 . . Demolisher 1 | 1 . . . . Assembled 3 | 3 . . . . Best Kill Streak 4 | 4 2 3 . 3 Combat Bots Only 4 | 4 1 3 . 3 Max Kills in Single Turn 3 | 1 1 3 . 3 Gunslinging . | . . . . . Exploded 3 | . . 3 . 3 Melee . | . . . . . Uniques/NPCs Destroyed . | . . . . . Combat | -11 -10 -10 -10 -9 -------- Run | Yrd Mat Min Exi Min Hostile Shots Fired 41 | 30 1 6 . 4 Missed 9 | 5 1 2 . 1 Damage Taken 795 | 678 . 61 . 56 Core 264 | 213 . 25 . 26 Absorbed by Shields . | . . . . . Core Remaining (%) 14 | 14 . . . . Volleys Fired 34 | 17 7 8 . 2 Largest 2 | 2 2 2 . 2 Hottest 60 | 40 40 60 . 60 Shots Fired 62 | 28 14 16 . 4 Gun 52 | 28 14 10 . . Cannon . | . . . . . Launcher 10 | . . 6 . 4 Special . | . . . . . Kinetic 52 | 28 14 10 . . Thermal . | . . . . . Explosive 10 | . . 6 . 4 Electromagnetic . | . . . . . Robot Hit Streak 10 | 7 10 3 . 1 Robot Miss Streak 2 | 2 2 1 . 1 Penetration Max . | . . . . . Secondary Targets 1 | 1 . . . . Max Gunslinging Chain 1 | 1 . . . . Shots Hit Robots 37 | 19 10 7 . 1 Core Hits 27 | 10 5 9 . 3 Critical Kills . | . . . . . Critical Parts Destroyed . | . . . . . Critical Strikes . | . . . . . Melee Attacks . | . . . . . Impact . | . . . . . Slashing . | . . . . . Piercing . | . . . . . Sneak Attacks . | . . . . . Combat Hostiles . | . . . . . Follow-up Attacks . | . . . . . Damage Inflicted 712 | 245 121 188 . 158 Guns 460 | 245 121 94 . . Cannons . | . . . . . Explosions 252 | . . 94 . 158 Melee . | . . . . . Ramming . | . . . . . Kinetic 460 | 245 121 94 . . Thermal . | . . . . . Explosive 252 | . . 94 . 158 Electromagnetic . | . . . . . Impact . | . . . . . Slashing . | . . . . . Piercing . | . . . . . Highest Corruption . | . . . . . Average Corruption . | . . . . . Corruption Purged . | . . . . . Corruption Blocked . | . . . . . Overload Shots . | . . . . . Overflow Damage . | . . . . . Projectiles . | . . . . . Explosions . | . . . . . Melee . | . . . . . Knockbacks . | . . . . . Impact . | . . . . . Kinetic . | . . . . . Secondary . | . . . . . Self-Inflicted Damage 49 | . . 29 . 20 Shots 2 | . . 1 . 1 Rammed . | . . . . . Targets Rammed . | . . . . . Kicked . | . . . . . Crushed . | . . . . . Highest Temperature 18 | 13 . 9 . 18 Average Temperature 6 | 9 . 3 . 9 Received Heat Transfer 86 | 80 . 6 . . Siege Activations . | . . . . . Robots Corrupted . | . . . . . Combat Hostiles . | . . . . . Parts Fried . | . . . . . Impact Corruptions . | . . . . . Robots Melted . | . . . . . Combat Hostiles . | . . . . . Parts Melted . | . . . . . Heat Transferred . | . . . . . Parts Sabotaged . | . . . . . Parts Stolen . | . . . . . Parts Stripped . | . . . . . Power Chain Reactions . | . . . . . Alert | -11 -10 -10 -10 -9 ------- Run | Yrd Mat Min Exi Min Peak Influence 185 | 30 87 185 . 93 Initial 33 | . . 33 . . Average 17 | . 30 130 . 68 Maximum Alert Level . | . . . . . Low Security (%) 100 | 100 100 100 . 100 Level 1 . | . . . . . Level 2 . | . . . . . Level 3 . | . . . . . Level 4 . | . . . . . Level 5 . | . . . . . High Security . | . . . . . Max Security . | . . . . . Squads Dispatched 2 | . 1 1 . . Investigation 2 | . 1 1 . . Extermination . | . . . . . Reinforcement . | . . . . . Assault . | . . . . . Garrison . | . . . . . Intercept . | . . . . . Searches Triggered . | . . . . . Construction Impeded . | . . . . . Haulers Reinforced . | . . . . . Active Scanning Responses . | . . . . . Cargo Convoy Interrupts . | . . . . . Stealth | -11 -10 -10 -10 -9 --------- Run | Yrd Mat Min Exi Min Distress Signals 1 | . 1 . . . Communications Jammed . | . . . . . Distress Signals . | . . . . . Times Spotted 34 | 19 5 6 . 4 Peak Tracking Total 15 | 15 4 3 . 1 Tactical Retreats 1 | . 1 . . . Traps | -11 -10 -10 -10 -9 ------- Run | Yrd Mat Min Exi Min Traps Triggered . | . . . . . Indirectly . | . . . . . Trap Hack Attempts . | . . . . . Triggered . | . . . . . Disarmed . | . . . . . Reprogrammed . | . . . . . Reused . | . . . . . Traps Extracted . | . . . . . Installed . | . . . . . Triggered . | . . . . . Machines | -11 -10 -10 -10 -9 ---------- Run | Yrd Mat Min Exi Min Machines Disabled . | . . . . . Max in Single Turn . | . . . . . Machines Repaired . | . . . . . Machines Dismantled . | . . . . . Machines Sabotaged . | . . . . . Overloaded Fab Kills . | . . . . . Hacking | -11 -10 -10 -10 -9 --------- Run | Yrd Mat Min Exi Min Machines Accessed 4 | . 1 1 2 . Terminals 1 | . 1 . . . Fabricators . | . . . . . Repair Stations . | . . . . . Recycling Units . | . . . . . Scanalyzers . | . . . . . Garrison Access . | . . . . . Total Hacks 27 | . 2 1 24 . Successful 26 | . 1 1 24 . Failed 1 | . 1 . . . Catastrophic 1 | . 1 . . . Database Lockouts . | . . . . . Manual 2 | . 1 . 1 . Terminals 2 | . 2 . . . Fabricators . | . . . . . Repair Stations . | . . . . . Recycling Units . | . . . . . Scanalyzers . | . . . . . Garrison Access . | . . . . . Terminal Hacks 26 | . 1 1 24 . Record 24 | . 1 . 23 . Open Door 1 | . . 1 . . Derelict Proto ID Bank 1 | . . . 1 . Fabricator Hacks . | . . . . . Repair Station Hacks . | . . . . . Recycling Unit Hacks . | . . . . . Scanalyzer . | . . . . . Garrison Access Hacks . | . . . . . Unauthorized Hacks . | . . . . . Terminals . | . . . . . Fabricators . | . . . . . Repair Stations . | . . . . . Recycling Units . | . . . . . Scanalyzers . | . . . . . Garrison Access . | . . . . . Data Cores Recovered 1 | . 1 . . . Used . | . . . . . Hacking Detections 1 | . 1 . . . Full Trace Events 1 | . 1 . . . Feedback Events . | . . . . . Feedback Blocked . | . . . . . Robot Schematics Acquired . | . . . . . Robots Built . | . . . . . Authchips . | . . . . . Time . | . . . . . Total Robot Build Rating . | . . . . . Part Schematics Acquired . | . . . . . Parts Built . | . . . . . Authchips . | . . . . . Time . | . . . . . Total Part Build Rating . | . . . . . Parts Repaired . | . . . . . Time . | . . . . . Parts Recycled . | . . . . . Recycled Matter . | . . . . . Retrieved Matter . | . . . . . Retrieved Components . | . . . . . Parts Scanalyzed . | . . . . . Part Schematics Acquired . | . . . . . Parts Damaged . | . . . . . Bothacking | -11 -10 -10 -10 -9 ------------ Run | Yrd Mat Min Exi Min Used RIF Installer . | . . . . . Robots Hacked . | . . . . . Non-combat . | . . . . . Combat . | . . . . . Robot Hacks Applied . | . . . . . Relay Couplers Released . | . . . . . Fabnet Peak Effective % . | . . . . . Robots Rewired . | . . . . . Allies Hacked . | . . . . . Hacks Repelled . | . . . . . Allies | -11 -10 -10 -10 -9 -------- Run | Yrd Mat Min Exi Min Total Allies . | . . . . . Largest Group . | . . . . . Highest-Rated Group . | . . . . . Highest-Rated Ally . | . . . . . Total Orders . | . . . . . Ally Attacks . | . . . . . Total Damage . | . . . . . Kills . | . . . . . Allies Corrupted . | . . . . . Allies Melted . | . . . . . Intel | -11 -10 -10 -10 -9 ------- Run | Yrd Mat Min Exi Min Robot Analysis Total . | . . . . . Derelict Logs Recovered 2 | . . 2 . . Drone Launches . | . . . . . Drone Recoveries . | . . . . . Exploration | -11 -10 -10 -10 -9 ------------- Run | Yrd Mat Min Exi Min Turns Passed 3574 | 2068 302 223 851 130 Spaces Moved 1812 | 411 315 246 750 90 Core 29 | 29 . . . . Treads 314 | 314 . . . . Legs . | . . . . . Wheels . | . . . . . Hover 1469 | 68 315 246 750 90 Flight . | . . . . . Fastest Speed 50 | 50 66 66 66 131 Average Speed 107 | 139 78 66 112 131 Slowest Speed 160 | 160 80 66 131 131 Overloaded Moves . | . . . . . Propulsion Burnouts . | . . . . . Robots Hopped . | . . . . . Cave-ins Triggered . | . . . . . Exploration Rate (%) 43 | 37 45 47 72 14 Regions Visited 4 Branch Regions 3 Pre-discovered Areas 1 | . . . 1 . Known Exits Taken 2 | . . 1 1 . Unknown Exits Taken 2 | 1 1 . . . Scrap Searched 2 | . . 1 . 1 Spaces Dug . | . . . . . Terrain Destroyed 77 | . . 42 . 35 Melee . | . . . . . Projectile . | . . . . . AOE 77 | . . 42 . 35 Terrain Rammed . | . . . . . Walls Destroyed . | . . . . . Machines Disabled . | . . . . . Actions | -11 -10 -10 -10 -9 --------- Run | Yrd Mat Min Exi Min Total 3371 | 1875 355 288 757 96 Wait 1482 | 1432 27 23 . . Move 1808 | 410 314 245 749 90 Hop . | . . . . . Pick Up 12 | 5 1 3 3 . Fast Attach 14 | 8 4 2 . . Attach 2 | 1 . 1 . . Detach 2 | . 2 . . . Swap 9 | . . 4 1 4 Drop 8 | 2 . 2 4 . Fire 34 | 17 7 8 . 2 Melee . | . . . . . Ram . | . . . . . Kick . | . . . . . Crush . | . . . . . Escape Stasis . | . . . . . Rewire . | . . . . . Trap . | . . . . . Miscellaneous . | . . . . . Route ------- -11/Scrapyard -10/Materials (discovered 2 exits: [*Mat] / *Min) -10/Mines (discovered 2 exits: [*Mat] / *Exi) -10/Exiles (discovered 2 exits: *Min x2) -9/Mines (discovered 1 exit: [*Mat]) History --------- Turn | Location | Event 4 | -11/Scrapyard | Discovered new exit (range 16) 1945 | -11/Scrapyard | Assembled infested the area 1996 | -11/Scrapyard | Core integrity fell below 50% 2003 | -11/Scrapyard | Core integrity fell below 20% 2024 | -11/Scrapyard | Lost 4 parts (1p1n2w) 2069 | -11/Scrapyard | Entered Materials 2073 | -10/Materials | Build established: Mutant 2325 | -10/Materials | Discovered new exit (range 15) 2357 | -10/Materials | Discovered new exit (range 13) 2371 | -10/Materials | Entered Mines 2372 | -10/Mines | Met a Derelict testing a Signal Generator 2373 | -10/Mines | Found Signal Generator 2463 | -10/Mines | Met a Derelict shopkeep closing up shop 2486 | -10/Mines | Met a Derelict bent on vengeance 2537 | -10/Mines | Learned Materials machine intel 2547 | -10/Mines | Discovered new exit (range 5) 2585 | -10/Mines | Identified exit to Exiles 2592 | -10/Mines | Deemed a non-threat by the Exiles lab entrance 2594 | -10/Mines | Entered Exiles 2610 | -10/Exiles | Met 8R-AWN 2622 | -10/Exiles | Met EX-HEX 2641 | -10/Exiles | Met EX-BIN 2648 | -10/Exiles | Aligned with FarCom system 2649 | -10/Exiles | Given EX-Vault access code 2664 | -10/Exiles | Opened EX-Vault 2670 | -10/Exiles | Found Cloak of Protection 2686 | -10/Exiles | Warned to stay clear of 0b10 Research branches 2704 | -10/Exiles | Met EX-DEC 2707 | -10/Exiles | Learned location of Zion (-6) 3116 | -10/Exiles | Discovered new exit (range 14) 3132 | -10/Exiles | Identified exit to Mines 3279 | -10/Exiles | Discovered exit to Mines (range 10) 3445 | -10/Exiles | Left Exiles lab with Cloak of Protection 3445 | -10/Exiles | Entered Mines 3489 | -9/Mines | Discovered new exit (range 10) 3566 | -9/Mines | Assembled infested the area 3575 | -9/Mines | Destroyed by D-53 Grenadier with Mini Grenade Launcher Last Messages --------------- 03489_ EXIT=FOUND 03494_ U-05 Engineer lays Concrete. 03496_ U-05 Engineer builds a Wall. 03500_ U-05 Engineer lays Concrete. 03502_ U-05 Engineer builds a Wall. 03513_ K-01 Serf collects debris. 03543_ Searching scrap... 03543_ Found Visual Processing Unit. 03543_ Found Seismic Detector. 03543_ Found Heat Sink. 03543_ Found Cooling System. 03543_ Found 14 Matter. 03544_ Acquired 14 matter. 03549_ K-01 Serf collects debris. 03566_ ALERT: Infestation in the mines, dispatching Demolisher response squad. 03567_ K-01 Serf collects debris. 03575_ C-30 ARC bursts open, deploying its payload. 03575_ D-53 Grenadier unfolds itself. Map ----- +----------------------------------------------------+ | | | | | | | | | | | | | | | | | | | ????????????????????????????????????????????????? | | ????????????????????????????????????????????????? | | ?????????????????####???????????????????????????? | | ?????????######### ##??????????????????????????? | | ?????????# < #??????????????????????????? | | ????????## # ##????####?????????????????? | | ????????# #???##/ ##????????????????? | | ????????# = #???# ##???????????????? | | ????????## ##### ##???# ##??????????????? | | ????????# ## #????# ##?????????????? | | ?????##### ##### #?????# !#?????????????? | | ????## ##??# #?????# #?????????????? | | ????# #??# #????## #?????????????? | | ????# #??# #????# ##?????????????? | | ????## #??#d%###### #??????????????? | | ?????## ###??# dt !! ##??????????????? | | ??????## #????# ! @ ##???????????????? | | ???????# ##????######### ##???????????????? | | ???????# #?????????????# ##??????????????? | | ???????## #?????????????## #??????????????? | | ????????# ##??????????????# #??????????????? | | ???????? #???????????????# ##??????????????? | | ???????? #??????????????# ##???????????????? | | ???????# ????????????? ##????????????????? | | ???????## ??????????? ####?????????????????? | | ????????# ???????? #?????????????????????? | | ????????# ???????# ! ??????????????????????? | | ???????? ???????## ???????????????????????? | | ???????? ## #???????## ???????????????????????? | | ???????? #?? #????????##????????????????????????? | | ???????? ??? #??????????????????????????????????? | | ???????? ??? #??????????????????????????????????? | | ???????? ????#??????????????????????????????????? | | ????????????????????????????????????????????????? | | ????????????????????????????????????????????????? | | ????????????????????????????????????????????????? | | ????????????????????????????????????????????????? | | ????????????????????????????????????????????????? | | ????????????????????????????????????????????????? | | ????????????????????????????????????????????????? | | ????????????????????????????????????????????????? | +----------------------------------------------------+ Best States ------------- Heat Dissipation 25 Energy Generation 14 Energy Capacity 250 Matter Stores 300 Matter Capacity 300 Sight Range 16 Terrain Scan Density 10 Evasion (%) 51 Recoil Reduction 2 Item Schematics ----------------- None Robot Schematics ------------------ None Fabricated ------------ Nothing Alien Tech Used ----------------- None Achievements -------------- None Challenges ------------ None Game ------ Seed StoragePlasmaReconstructor Manual? 0 Play Time 00:18:44 Cumulative 26.2 hours Start 2024.04.15 @ 11:39:33 End 2024.04.15 @ 11:57:09 Sessions 1 Manual Loads 0 Difficulty Rogue Special Mode None Game No. 26 Rogue 14 Adventurer 12 Explorer 0 Win Type - Total 0 Types 0/0/0/0/0/0/0/0/0 Lore% 15 Gallery% 27 Achievement% 23 Wizard Run 0 Options --------- Layout 2 ASCII 0 Keyboard 0 Movement Mouse Keybinds 0 Fullscreen 1 Font 24/Smallcaps Map View 50x44 Zoom Use 17% Tactical HUD 1 Map Filters NONE Filters NONE Steam 1 RUN: 5574a333-2001-4981-8006-d1d9e2540acd